[Event "January 2 Early 2024"]
[Site "https://www.chess.com"]
[Date "2024.01.02"]
[Round "5"]
[White "Ambartsumova, Karina"]
[Black "Garrido, Denis"]
[Result "1-0"]
[Board "137"]
[TimeControl "180+1"]
[WhiteFideId "4166299"]
[BlackFideId "601217"]
[WhiteElo "2587"]
[BlackElo "2406"]
[WhiteTeam "RUS"]
[BlackTeam "FRA"]
[WhiteClock "0:00:19"]
[BlackClock "0:00:13"]

1. d4 {[%clk 0:02:56]}  e6 {[%clk 0:02:56]} 2. c4 {[%clk 0:02:56]}  f5 {[%clk 0:02:55]} 3. Nc3 {[%clk 0:02:56]}  Bb4 {[%clk 0:02:54]} 4. g3 {[%clk 0:02:56]}  Nf6 {[%clk 0:02:53]} 5. Bg2 {[%clk 0:02:56]}  O-O {[%clk 0:02:53]} 6. Bd2 {[%clk 0:02:53]}  b6 {[%clk 0:02:53]} 7. Bxa8 {[%clk 0:02:52]}  c6 {[%clk 0:02:48]} 8. Nf3 {[%clk 0:02:45]}  Na6 {[%clk 0:02:32]} 9. Bf4 {[%clk 0:02:38]}  Nc7 {[%clk 0:02:29]} 10. Bxc7 {[%clk 0:02:35]}  Qxc7 {[%clk 0:02:29]} 11. Qa4 {[%clk 0:02:26]}  a5 {[%clk 0:02:28]} 12. O-O {[%clk 0:02:19]}  Ba6 {[%clk 0:02:25]} 13. Bxc6 {[%clk 0:02:13]}  dxc6 {[%clk 0:02:23]} 14. Ne5 {[%clk 0:02:11]}  Rc8 {[%clk 0:02:19]} 15. Rac1 {[%clk 0:02:05]}  Bd6 {[%clk 0:02:18]} 16. Nf3 {[%clk 0:01:57]}  Qd8 {[%clk 0:01:59]} 17. Qb3 {[%clk 0:01:56]}  c5 {[%clk 0:01:44]} 18. Nb5 {[%clk 0:01:52]}  Bb8 {[%clk 0:01:33]} 19. dxc5 {[%clk 0:01:49]}  bxc5 {[%clk 0:01:33]} 20. Rfd1 {[%clk 0:01:46]}  Qe7 {[%clk 0:01:33]} 21. Qd3 {[%clk 0:01:44]}  Bb7 {[%clk 0:01:27]} 22. Qd2 {[%clk 0:01:33]}  a4 {[%clk 0:01:16]} 23. Qa5 {[%clk 0:01:19]}  g5 {[%clk 0:01:16]} 24. Nxg5 {[%clk 0:01:11]}  Ng4 {[%clk 0:00:53]} 25. Nf3 {[%clk 0:01:11]}  e5 {[%clk 0:00:51]} 26. Qb6 {[%clk 0:00:55]}  e4 {[%clk 0:00:51]} 27. Nh4 {[%clk 0:00:44]}  e3 {[%clk 0:00:50]} 28. f3 {[%clk 0:00:44]}  Nxh2 {[%clk 0:00:36]} 29. Nxf5 {[%clk 0:00:42]}  Qe5 {[%clk 0:00:25]} 30. Qxb7 {[%clk 0:00:30]}  Qxf5 {[%clk 0:00:22]} 31. Kxh2 {[%clk 0:00:20]}  Bxg3+ {[%clk 0:00:22]} 32. Kg2 {[%clk 0:00:18]}  Bf2 {[%clk 0:00:17]} 33. Qd5+ {[%clk 0:00:18]}  Qxd5 {[%clk 0:00:13]} 34. Rxd5 {[%clk 0:00:19]} 1-0

[Event "January 2 Early 2024"]
[Site "https://www.chess.com"]
[Date "2024.01.02"]
[Round "5"]
[White "Parfenov, Viktor N."]
[Black "Fernandez Garcia, Gumersindo"]
[Result "1-0"]
[Board "140"]
[TimeControl "180+1"]
[WhiteFideId "4165969"]
[BlackFideId "24516740"]
[WhiteElo "2535"]
[BlackElo "2375"]
[WhiteTeam "RUS"]
[BlackTeam "ESP"]
[WhiteClock "0:01:34"]
[BlackClock "0:00:13"]

1. d4 {[%clk 0:03:00]}  Nf6 {[%clk 0:02:59]} 2. c4 {[%clk 0:03:00]}  d6 {[%clk 0:02:57]} 3. Nc3 {[%clk 0:02:59]}  e5 {[%clk 0:02:55]} 4. f3 {[%clk 0:02:56]}  exd4 {[%clk 0:02:53]} 5. Qxd4 {[%clk 0:02:55]}  Nc6 {[%clk 0:02:54]} 6. Qf2 {[%clk 0:02:56]}  g6 {[%clk 0:02:49]} 7. e4 {[%clk 0:02:55]}  Bg7 {[%clk 0:02:49]} 8. Be3 {[%clk 0:02:54]}  O-O {[%clk 0:02:48]} 9. O-O-O {[%clk 0:02:48]}  Be6 {[%clk 0:02:42]} 10. g4 {[%clk 0:02:46]}  a6 {[%clk 0:02:32]} 11. h4 {[%clk 0:02:45]}  h5 {[%clk 0:02:30]} 12. g5 {[%clk 0:02:43]}  Nd7 {[%clk 0:02:30]} 13. f4 {[%clk 0:02:41]}  Bg4 {[%clk 0:02:23]} 14. Be2 {[%clk 0:02:42]}  Bxe2 {[%clk 0:02:23]} 15. Ngxe2 {[%clk 0:02:41]}  b5 {[%clk 0:02:23]} 16. c5 {[%clk 0:02:37]}  b4 {[%clk 0:02:07]} 17. Nd5 {[%clk 0:02:34]}  dxc5 {[%clk 0:02:06]} 18. Bxc5 {[%clk 0:02:33]}  Nxc5 {[%clk 0:01:55]} 19. Qxc5 {[%clk 0:02:32]}  Qd6 {[%clk 0:01:46]} 20. Qxd6 {[%clk 0:02:18]}  cxd6 {[%clk 0:01:42]} 21. Kb1 {[%clk 0:02:18]}  Rfd8 {[%clk 0:01:36]} 22. Rc1 {[%clk 0:02:13]}  Nd4 {[%clk 0:01:30]} 23. Nxd4 {[%clk 0:02:11]}  Bxd4 {[%clk 0:00:59]} 24. Rhd1 {[%clk 0:02:11]}  Bf2 {[%clk 0:00:58]} 25. Rc7 {[%clk 0:02:01]}  Bxh4 {[%clk 0:00:56]} 26. Nxb4 {[%clk 0:01:55]}  Bg3 {[%clk 0:00:47]} 27. Nd5 {[%clk 0:01:54]}  h4 {[%clk 0:00:44]} 28. f5 {[%clk 0:01:48]}  h3 {[%clk 0:00:40]} 29. Rc3 {[%clk 0:01:45]}  Bh4 {[%clk 0:00:29]} 30. Rxh3 {[%clk 0:01:44]}  Bxg5 {[%clk 0:00:30]} 31. Rdh1 {[%clk 0:01:41]}  gxf5 {[%clk 0:00:27]} 32. exf5 {[%clk 0:01:37]}  Kg7 {[%clk 0:00:14]} 33. Rh7+ {[%clk 0:01:35]}  Kf8 {[%clk 0:00:13]} 34. Rh8+ {[%clk 0:01:34]}  Kg7 {[%clk 0:00:13]} 35. R1h7# {[%clk 0:01:34]} 1-0

[Event "January 2 Early 2024"]
[Site "https://www.chess.com"]
[Date "2024.01.02"]
[Round "5"]
[White "Coro, Lucas"]
[Black "Kleibel, Uwe"]
[Result "0-1"]
[Board "141"]
[TimeControl "180+1"]
[WhiteFideId "147222"]
[BlackFideId "1270982"]
[WhiteElo "2526"]
[BlackElo "2343"]
[WhiteTeam "ARG"]
[BlackTeam "GER"]
[WhiteClock "0:00:00"]
[BlackClock "0:00:16"]

1. e4 {[%clk 0:02:42]}  e5 {[%clk 0:02:59]} 2. Nf3 {[%clk 0:02:25]}  Nc6 {[%clk 0:02:59]} 3. Bb5 {[%clk 0:02:25]}  a6 {[%clk 0:02:59]} 4. Ba4 {[%clk 0:02:24]}  Nf6 {[%clk 0:02:58]} 5. O-O {[%clk 0:02:23]}  Be7 {[%clk 0:02:58]} 6. Re1 {[%clk 0:02:23]}  b5 {[%clk 0:02:56]} 7. Bb3 {[%clk 0:02:23]}  d6 {[%clk 0:02:57]} 8. c3 {[%clk 0:02:23]}  O-O {[%clk 0:02:57]} 9. h3 {[%clk 0:02:24]}  Nb8 {[%clk 0:02:56]} 10. d4 {[%clk 0:02:24]}  Nbd7 {[%clk 0:02:57]} 11. c4 {[%clk 0:02:24]}  c6 {[%clk 0:02:54]} 12. Nc3 {[%clk 0:02:22]}  Qc7 {[%clk 0:02:51]} 13. Bg5 {[%clk 0:02:05]}  Re8 {[%clk 0:02:49]} 14. Rc1 {[%clk 0:02:05]}  b4 {[%clk 0:02:46]} 15. Ne2 {[%clk 0:02:04]}  c5 {[%clk 0:02:45]} 16. dxe5 {[%clk 0:02:02]}  Nxe5 {[%clk 0:02:43]} 17. Nxe5 {[%clk 0:02:01]}  dxe5 {[%clk 0:02:44]} 18. Ng3 {[%clk 0:01:59]}  Be6 {[%clk 0:02:37]} 19. Qf3 {[%clk 0:01:58]}  Red8 {[%clk 0:02:33]} 20. Nf5 {[%clk 0:01:57]}  a5 {[%clk 0:02:22]} 21. Ne3 {[%clk 0:01:34]}  Rd4 {[%clk 0:02:17]} 22. Bxf6 {[%clk 0:01:29]}  Bxf6 {[%clk 0:02:17]} 23. Nd5 {[%clk 0:01:29]}  Qd8 {[%clk 0:02:11]} 24. Ba4 {[%clk 0:01:23]}  Be7 {[%clk 0:02:01]} 25. a3 {[%clk 0:01:13]}  Rb8 {[%clk 0:01:57]} 26. Qe2 {[%clk 0:01:08]}  Bg5 {[%clk 0:01:46]} 27. Ra1 {[%clk 0:01:07]}  Rd2 {[%clk 0:01:42]} 28. Qf3 {[%clk 0:01:07]}  Rxb2 {[%clk 0:01:41]} 29. axb4 {[%clk 0:01:07]}  axb4 {[%clk 0:01:42]} 30. Bc6 {[%clk 0:01:04]}  Rc2 {[%clk 0:01:30]} 31. Qg3 {[%clk 0:01:04]}  Bf6 {[%clk 0:01:22]} 32. Red1 {[%clk 0:00:56]}  b3 {[%clk 0:01:08]} 33. Rab1 {[%clk 0:00:54]}  b2 {[%clk 0:01:08]} 34. Qa3 {[%clk 0:00:47]}  Bxd5 {[%clk 0:00:48]} 35. Bxd5 {[%clk 0:00:39]}  Qb6 {[%clk 0:00:48]} 36. g3 {[%clk 0:00:35]}  Bg5 {[%clk 0:00:46]} 37. Kg2 {[%clk 0:00:35]}  Bc1 {[%clk 0:00:38]} 38. Qf3 {[%clk 0:00:31]}  Qf6 {[%clk 0:00:35]} 39. Qxf6 {[%clk 0:00:23]}  gxf6 {[%clk 0:00:36]} 40. Kf1 {[%clk 0:00:18]}  Rb3 {[%clk 0:00:32]} 41. Kg2 {[%clk 0:00:13]}  Kf8 {[%clk 0:00:28]} 42. Bc6 {[%clk 0:00:13]}  Ra3 {[%clk 0:00:17]} 43. Bb5 {[%clk 0:00:00]}  Kg7 {[%clk 0:00:16]} 0-1

[Event "January 2 Early 2024"]
[Site "https://www.chess.com"]
[Date "2024.01.02"]
[Round "5"]
[White "Gao, Raymond"]
[Black "Jaiveer Mahendru"]
[Result "1/2-1/2"]
[Board "143"]
[TimeControl "180+1"]
[WhiteFideId "2629429"]
[BlackFideId "25611151"]
[WhiteElo "2339"]
[BlackElo "2524"]
[WhiteTeam "CAN"]
[BlackTeam "IND"]
[WhiteClock "0:00:08"]
[BlackClock "0:00:05"]

1. e4 {[%clk 0:02:58]}  c5 {[%clk 0:02:55]} 2. Nf3 {[%clk 0:02:58]}  d6 {[%clk 0:02:50]} 3. d4 {[%clk 0:02:56]}  cxd4 {[%clk 0:02:51]} 4. Qxd4 {[%clk 0:02:56]}  Nc6 {[%clk 0:02:51]} 5. Qe3 {[%clk 0:02:57]}  Nf6 {[%clk 0:02:51]} 6. h3 {[%clk 0:02:57]}  g6 {[%clk 0:02:50]} 7. c4 {[%clk 0:02:57]}  Bg7 {[%clk 0:02:50]} 8. Be2 {[%clk 0:02:57]}  O-O {[%clk 0:02:50]} 9. Nc3 {[%clk 0:02:57]}  Be6 {[%clk 0:02:50]} 10. O-O {[%clk 0:02:58]}  Nd7 {[%clk 0:02:50]} 11. b3 {[%clk 0:02:55]}  Nc5 {[%clk 0:02:40]} 12. Bb2 {[%clk 0:02:53]}  Rc8 {[%clk 0:02:33]} 13. Rac1 {[%clk 0:02:50]}  a6 {[%clk 0:02:27]} 14. Rfd1 {[%clk 0:02:50]}  Qa5 {[%clk 0:02:25]} 15. Qd2 {[%clk 0:02:31]}  Rfd8 {[%clk 0:01:52]} 16. Qc2 {[%clk 0:02:31]}  Nb4 {[%clk 0:01:50]} 17. Qb1 {[%clk 0:02:30]}  Nc6 {[%clk 0:01:50]} 18. Qc2 {[%clk 0:02:29]}  Qb6 {[%clk 0:01:35]} 19. Bf1 {[%clk 0:02:10]}  Bh6 {[%clk 0:01:23]} 20. Rb1 {[%clk 0:02:02]}  Bg7 {[%clk 0:01:16]} 21. Rbc1 {[%clk 0:02:01]}  Qa7 {[%clk 0:01:13]} 22. Nd5 {[%clk 0:01:51]}  Bxb2 {[%clk 0:01:02]} 23. Qxb2 {[%clk 0:01:52]}  Nd7 {[%clk 0:01:03]} 24. Nd4 {[%clk 0:01:29]}  Nde5 {[%clk 0:00:56]} 25. Nxe6 {[%clk 0:01:14]}  fxe6 {[%clk 0:00:54]} 26. Nf4 {[%clk 0:01:14]}  Rf8 {[%clk 0:00:53]} 27. Nxe6 {[%clk 0:01:10]}  Rf6 {[%clk 0:00:53]} 28. Nd4 {[%clk 0:00:54]}  Rcf8 {[%clk 0:00:53]} 29. Rc2 {[%clk 0:00:48]}  Rf4 {[%clk 0:00:48]} 30. Nxc6 {[%clk 0:00:41]}  bxc6 {[%clk 0:00:45]} 31. Qd4 {[%clk 0:00:40]}  Qxd4 {[%clk 0:00:43]} 32. Rxd4 {[%clk 0:00:39]}  c5 {[%clk 0:00:44]} 33. Rdd2 {[%clk 0:00:26]}  Rxe4 {[%clk 0:00:39]} 34. Re2 {[%clk 0:00:26]}  Rd4 {[%clk 0:00:33]} 35. Rcd2 {[%clk 0:00:26]}  Nc6 {[%clk 0:00:32]} 36. Rxd4 {[%clk 0:00:25]}  cxd4 {[%clk 0:00:33]} 37. g3 {[%clk 0:00:23]}  e5 {[%clk 0:00:31]} 38. Bg2 {[%clk 0:00:24]}  Nb4 {[%clk 0:00:31]} 39. a3 {[%clk 0:00:23]}  Nd3 {[%clk 0:00:31]} 40. b4 {[%clk 0:00:19]}  Kg7 {[%clk 0:00:27]} 41. Be4 {[%clk 0:00:19]}  Nc1 {[%clk 0:00:27]} 42. Rb2 {[%clk 0:00:17]}  Rc8 {[%clk 0:00:27]} 43. Rc2 {[%clk 0:00:07]}  Nb3 {[%clk 0:00:21]} 44. Rb2 {[%clk 0:00:07]}  Nc1 {[%clk 0:00:15]} 45. Rc2 {[%clk 0:00:07]}  Nb3 {[%clk 0:00:10]} 46. Rb2 {[%clk 0:00:08]}  Nc1 {[%clk 0:00:05]} 1/2-1/2

[Event "January 2 Early 2024"]
[Site "https://www.chess.com"]
[Date "2024.01.02"]
[Round "5"]
[White "Dushyant Sharma"]
[Black "Nord, Alexander"]
[Result "0-1"]
[Board "144"]
[TimeControl "180+1"]
[WhiteFideId "25065130"]
[BlackFideId "1738135"]
[WhiteElo "2522"]
[BlackElo "2337"]
[WhiteTeam "IND"]
[BlackTeam "SWE"]
[WhiteClock "0:01:15"]
[BlackClock "0:00:50"]

1. e4 {[%clk 0:02:56]}  c5 {[%clk 0:02:58]} 2. Nf3 {[%clk 0:02:55]}  Nc6 {[%clk 0:02:57]} 3. d4 {[%clk 0:02:55]}  cxd4 {[%clk 0:02:58]} 4. Nxd4 {[%clk 0:02:56]}  Nf6 {[%clk 0:02:58]} 5. Nc3 {[%clk 0:02:56]}  e5 {[%clk 0:02:58]} 6. Nxc6 {[%clk 0:02:57]}  bxc6 {[%clk 0:02:57]} 7. Bd3 {[%clk 0:02:57]}  Be7 {[%clk 0:02:54]} 8. O-O {[%clk 0:02:58]}  O-O {[%clk 0:02:54]} 9. f4 {[%clk 0:02:57]}  d6 {[%clk 0:02:49]} 10. Kh1 {[%clk 0:02:57]}  Rb8 {[%clk 0:02:48]} 11. Qe1 {[%clk 0:02:56]}  exf4 {[%clk 0:02:35]} 12. Rxf4 {[%clk 0:02:49]}  Nd7 {[%clk 0:02:34]} 13. b3 {[%clk 0:02:48]}  Bg5 {[%clk 0:02:29]} 14. Rf3 {[%clk 0:02:48]}  Bxc1 {[%clk 0:02:29]} 15. Rxc1 {[%clk 0:02:48]}  Ne5 {[%clk 0:02:27]} 16. Rg3 {[%clk 0:02:49]}  Qf6 {[%clk 0:02:23]} 17. Ne2 {[%clk 0:02:47]}  Re8 {[%clk 0:02:16]} 18. Qd2 {[%clk 0:02:46]}  Ng4 {[%clk 0:01:56]} 19. h3 {[%clk 0:02:46]}  Ne5 {[%clk 0:01:52]} 20. Nf4 {[%clk 0:02:42]}  Qh6 {[%clk 0:01:37]} 21. Qf2 {[%clk 0:02:42]}  Ng6 {[%clk 0:01:30]} 22. Nxg6 {[%clk 0:02:40]}  Qxc1+ {[%clk 0:01:30]} 23. Kh2 {[%clk 0:02:37]}  hxg6 {[%clk 0:01:29]} 24. Qxa7 {[%clk 0:02:31]}  Be6 {[%clk 0:01:26]} 25. Rf3 {[%clk 0:02:26]}  Qb2 {[%clk 0:01:22]} 26. a4 {[%clk 0:02:12]}  Qe5+ {[%clk 0:01:21]} 27. Kh1 {[%clk 0:02:10]}  d5 {[%clk 0:01:20]} 28. exd5 {[%clk 0:02:05]}  Bxd5 {[%clk 0:01:20]} 29. Rf1 {[%clk 0:02:05]}  Qe3 {[%clk 0:01:17]} 30. Qxe3 {[%clk 0:01:59]}  Rxe3 {[%clk 0:01:18]} 31. a5 {[%clk 0:01:59]}  Bxb3 {[%clk 0:01:14]} 32. a6 {[%clk 0:01:56]}  Bd5 {[%clk 0:01:10]} 33. Kh2 {[%clk 0:01:43]}  Ra8 {[%clk 0:01:09]} 34. Rb1 {[%clk 0:01:42]}  Rxd3 {[%clk 0:01:09]} 35. cxd3 {[%clk 0:01:36]}  Rxa6 {[%clk 0:01:09]} 36. Kg3 {[%clk 0:01:35]}  Ra2 {[%clk 0:01:08]} 37. d4 {[%clk 0:01:19]}  Rxg2+ {[%clk 0:01:06]} 38. Kf4 {[%clk 0:01:20]}  Rd2 {[%clk 0:01:06]} 39. Kg5 {[%clk 0:01:18]}  Rxd4 {[%clk 0:01:00]} 40. h4 {[%clk 0:01:18]}  Kh7 {[%clk 0:00:59]} 41. Rf1 {[%clk 0:01:15]}  f6+ {[%clk 0:00:59]} 42. Rxf6 {[%clk 0:01:15]}  gxf6+ {[%clk 0:00:59]} 43. Kxf6 {[%clk 0:01:16]}  Rxh4 {[%clk 0:00:59]} 44. Ke5 {[%clk 0:01:16]}  Re4+ {[%clk 0:00:58]} 45. Kf6 {[%clk 0:01:16]}  c5 {[%clk 0:00:57]} 46. Kg5 {[%clk 0:01:17]}  c4 {[%clk 0:00:57]} 47. Kf6 {[%clk 0:01:16]}  c3 {[%clk 0:00:57]} 48. Kg5 {[%clk 0:01:17]}  c2 {[%clk 0:00:57]} 49. Kf6 {[%clk 0:01:18]}  g5 {[%clk 0:00:56]} 50. Kf5 {[%clk 0:01:18]}  Rf4+ {[%clk 0:00:54]} 51. Kxg5 {[%clk 0:01:16]}  c1=Q {[%clk 0:00:50]} 52. Kh5 {[%clk 0:01:15]}  Qh1+ {[%clk 0:00:50]} 0-1

[Event "January 2 Early 2024"]
[Site "https://www.chess.com"]
[Date "2024.01.02"]
[Round "5"]
[White "Yashmetov, Mikhail"]
[Black "Korol, Dimitry"]
[Result "1-0"]
[Board "145"]
[TimeControl "180+1"]
[WhiteFideId "24198900"]
[BlackFideId "14108003"]
[WhiteElo "2521"]
[BlackElo "2324"]
[WhiteTeam "RUS"]
[BlackTeam "UKR"]
[WhiteClock "0:00:32"]
[BlackClock "0:00:01"]

1. Nf3 {[%clk 0:03:00]}  c5 {[%clk 0:03:00]} 2. b3 {[%clk 0:03:01]}  g6 {[%clk 0:02:57]} 3. Bb2 {[%clk 0:03:01]}  Nf6 {[%clk 0:02:57]} 4. h4 {[%clk 0:02:57]}  Bg7 {[%clk 0:02:54]} 5. g4 {[%clk 0:02:56]}  O-O {[%clk 0:02:19]} 6. g5 {[%clk 0:02:50]}  Nh5 {[%clk 0:02:13]} 7. Bxg7 {[%clk 0:02:50]}  Nxg7 {[%clk 0:02:03]} 8. e3 {[%clk 0:02:46]}  Nc6 {[%clk 0:02:02]} 9. Bb5 {[%clk 0:02:41]}  d5 {[%clk 0:01:52]} 10. Nc3 {[%clk 0:02:37]}  Bg4 {[%clk 0:01:50]} 11. Rg1 {[%clk 0:02:35]}  Bh5 {[%clk 0:01:33]} 12. Be2 {[%clk 0:02:34]}  Qd7 {[%clk 0:01:06]} 13. d4 {[%clk 0:02:25]}  Rac8 {[%clk 0:01:04]} 14. dxc5 {[%clk 0:02:22]}  Rfd8 {[%clk 0:01:01]} 15. Nd4 {[%clk 0:02:06]}  e5 {[%clk 0:00:56]} 16. Nxc6 {[%clk 0:01:54]}  Qxc6 {[%clk 0:00:44]} 17. b4 {[%clk 0:01:47]}  b6 {[%clk 0:00:44]} 18. Bxh5 {[%clk 0:01:46]}  Nxh5 {[%clk 0:00:43]} 19. Qf3 {[%clk 0:01:27]}  bxc5 {[%clk 0:00:34]} 20. b5 {[%clk 0:01:26]}  Qd6 {[%clk 0:00:23]} 21. O-O-O {[%clk 0:01:23]}  c4 {[%clk 0:00:20]} 22. Rxd5 {[%clk 0:01:05]}  Qb4 {[%clk 0:00:17]} 23. Rgd1 {[%clk 0:00:51]}  Rxd5 {[%clk 0:00:15]} 24. Nxd5 {[%clk 0:00:49]}  Qa3+ {[%clk 0:00:13]} 25. Kd2 {[%clk 0:00:47]}  c3+ {[%clk 0:00:13]} 26. Ke1 {[%clk 0:00:45]}  Qc5 {[%clk 0:00:13]} 27. Qe4 {[%clk 0:00:43]}  Re8 {[%clk 0:00:12]} 28. Qb4 {[%clk 0:00:38]}  Qxb4 {[%clk 0:00:11]} 29. Nxb4 {[%clk 0:00:39]}  Rb8 {[%clk 0:00:10]} 30. a4 {[%clk 0:00:38]}  Ng7 {[%clk 0:00:09]} 31. Nc6 {[%clk 0:00:39]}  Re8 {[%clk 0:00:08]} 32. Nxa7 {[%clk 0:00:39]}  e4 {[%clk 0:00:08]} 33. b6 {[%clk 0:00:39]}  Rb8 {[%clk 0:00:07]} 34. a5 {[%clk 0:00:39]}  Ne6 {[%clk 0:00:06]} 35. Nc6 {[%clk 0:00:40]}  Rc8 {[%clk 0:00:05]} 36. b7 {[%clk 0:00:40]}  Rxc6 {[%clk 0:00:06]} 37. b8=Q+ {[%clk 0:00:40]}  Kg7 {[%clk 0:00:07]} 38. Qe5+ {[%clk 0:00:40]}  Kg8 {[%clk 0:00:05]} 39. Qxe4 {[%clk 0:00:40]}  Rc5 {[%clk 0:00:04]} 40. a6 {[%clk 0:00:38]}  Ra5 {[%clk 0:00:01]} 41. Qb7 {[%clk 0:00:32]} 1-0

[Event "January 2 Early 2024"]
[Site "https://www.chess.com"]
[Date "2024.01.02"]
[Round "5"]
[White "Lehtosaari, Mauri"]
[Black "Munoz Sanchez, Miguel"]
[Result "1-0"]
[Board "147"]
[TimeControl "180+1"]
[WhiteFideId "501999"]
[BlackFideId "3600734"]
[WhiteElo "2506"]
[BlackElo "2311"]
[WhiteTeam "FIN"]
[BlackTeam "ECU"]
[WhiteClock "0:00:16"]
[BlackClock "0:00:00"]

1. d4 {[%clk 0:03:00]}  Nf6 {[%clk 0:02:58]} 2. c4 {[%clk 0:02:59]}  g6 {[%clk 0:02:55]} 3. Nc3 {[%clk 0:02:59]}  Bg7 {[%clk 0:02:56]} 4. Nf3 {[%clk 0:02:59]}  O-O {[%clk 0:02:55]} 5. Bg5 {[%clk 0:03:00]}  d6 {[%clk 0:02:51]} 6. e3 {[%clk 0:03:00]}  c5 {[%clk 0:02:49]} 7. Be2 {[%clk 0:02:55]}  h6 {[%clk 0:02:49]} 8. Bh4 {[%clk 0:02:54]}  cxd4 {[%clk 0:02:42]} 9. Nxd4 {[%clk 0:02:49]}  Nc6 {[%clk 0:02:38]} 10. O-O {[%clk 0:02:31]}  Bd7 {[%clk 0:02:37]} 11. Rc1 {[%clk 0:02:28]}  Rc8 {[%clk 0:02:32]} 12. b3 {[%clk 0:02:23]}  Qa5 {[%clk 0:02:31]} 13. Bxf6 {[%clk 0:02:19]}  exf6 {[%clk 0:02:18]} 14. Nxc6 {[%clk 0:02:12]}  Bxc6 {[%clk 0:02:16]} 15. Bf3 {[%clk 0:02:08]}  f5 {[%clk 0:02:13]} 16. Nd5 {[%clk 0:01:41]}  Rfe8 {[%clk 0:02:06]} 17. a4 {[%clk 0:01:37]}  Qd8 {[%clk 0:01:57]} 18. g3 {[%clk 0:01:33]}  h5 {[%clk 0:01:55]} 19. h4 {[%clk 0:01:33]}  Bxd5 {[%clk 0:01:48]} 20. Bxd5 {[%clk 0:01:33]}  Qb6 {[%clk 0:01:48]} 21. Qd3 {[%clk 0:01:31]}  Re7 {[%clk 0:01:40]} 22. Rfd1 {[%clk 0:01:18]}  Rce8 {[%clk 0:01:39]} 23. Kg2 {[%clk 0:01:16]}  Bh6 {[%clk 0:01:29]} 24. Re1 {[%clk 0:01:08]}  Qc5 {[%clk 0:01:22]} 25. Rcd1 {[%clk 0:01:08]}  Kg7 {[%clk 0:01:15]} 26. Qd4+ {[%clk 0:01:00]}  Kg8 {[%clk 0:01:12]} 27. Bf3 {[%clk 0:00:51]}  Qb4 {[%clk 0:00:53]} 28. Qd3 {[%clk 0:00:36]}  Bg7 {[%clk 0:00:39]} 29. Re2 {[%clk 0:00:36]}  Be5 {[%clk 0:00:39]} 30. Bd5 {[%clk 0:00:29]}  Rc7 {[%clk 0:00:37]} 31. Rb1 {[%clk 0:00:20]}  a5 {[%clk 0:00:36]} 32. Qd2 {[%clk 0:00:20]}  Kg7 {[%clk 0:00:34]} 33. Qxb4 {[%clk 0:00:20]}  axb4 {[%clk 0:00:35]} 34. Rd1 {[%clk 0:00:20]}  Ra8 {[%clk 0:00:31]} 35. f4 {[%clk 0:00:18]}  Bf6 {[%clk 0:00:26]} 36. Bf3 {[%clk 0:00:18]}  Be7 {[%clk 0:00:24]} 37. Red2 {[%clk 0:00:17]}  Ra5 {[%clk 0:00:23]} 38. Rd5 {[%clk 0:00:17]}  Rxd5 {[%clk 0:00:20]} 39. Bxd5 {[%clk 0:00:17]}  b6 {[%clk 0:00:20]} 40. Ra1 {[%clk 0:00:16]}  Rc5 {[%clk 0:00:19]} 41. Kf3 {[%clk 0:00:17]}  Kf6 {[%clk 0:00:19]} 42. Bb7 {[%clk 0:00:17]}  Bd8 {[%clk 0:00:14]} 43. Rd1 {[%clk 0:00:16]}  Bc7 {[%clk 0:00:14]} 44. e4 {[%clk 0:00:15]}  fxe4+ {[%clk 0:00:12]} 45. Bxe4 {[%clk 0:00:16]}  Ke7 {[%clk 0:00:09]} 46. Bd5 {[%clk 0:00:16]}  Kf6 {[%clk 0:00:09]} 47. Re1 {[%clk 0:00:17]}  Bd8 {[%clk 0:00:09]} 48. Re8 {[%clk 0:00:17]}  Be7 {[%clk 0:00:07]} 49. Rh8 {[%clk 0:00:16]}  Kg7 {[%clk 0:00:07]} 50. Rb8 {[%clk 0:00:16]}  Bf6 {[%clk 0:00:00]} 51. Rxb6 {[%clk 0:00:16]} 1-0

[Event "January 2 Early 2024"]
[Site "https://www.chess.com"]
[Date "2024.01.02"]
[Round "5"]
[White "Sanchez Alvares, Kelvin Antonio"]
[Black "Harper, Ryan"]
[Result "1-0"]
[Board "148"]
[TimeControl "180+1"]
[WhiteFideId "3906680"]
[BlackFideId "7700156"]
[WhiteElo "2463"]
[BlackElo "2227"]
[WhiteTeam "VEN"]
[BlackTeam "TTO"]
[WhiteClock "0:01:28"]
[BlackClock "0:00:00"]

1. e4 {[%clk 0:02:45]}  c5 {[%clk 0:02:59]} 2. Nf3 {[%clk 0:02:44]}  d6 {[%clk 0:02:59]} 3. d4 {[%clk 0:02:44]}  cxd4 {[%clk 0:03:00]} 4. Nxd4 {[%clk 0:02:44]}  Nf6 {[%clk 0:03:01]} 5. Nc3 {[%clk 0:02:44]}  g6 {[%clk 0:03:00]} 6. f3 {[%clk 0:02:27]}  Bg7 {[%clk 0:03:00]} 7. Bc4 {[%clk 0:02:27]}  O-O {[%clk 0:03:01]} 8. Bb3 {[%clk 0:02:28]}  Nc6 {[%clk 0:03:01]} 9. h4 {[%clk 0:02:28]}  Nxe4 {[%clk 0:02:46]} 10. Nxc6 {[%clk 0:02:28]}  Nxc3 {[%clk 0:02:45]} 11. Nxd8 {[%clk 0:02:27]}  Nxd1 {[%clk 0:02:46]} 12. Nxf7 {[%clk 0:02:25]}  Nxb2 {[%clk 0:01:57]} 13. Rb1 {[%clk 0:02:19]}  Nc4 {[%clk 0:00:39]} 14. Bxc4 {[%clk 0:02:03]}  d5 {[%clk 0:00:39]} 15. Nh6+ {[%clk 0:01:54]}  Kh8 {[%clk 0:00:16]} 16. Bxd5 {[%clk 0:01:51]}  Bc3+ {[%clk 0:00:14]} 17. Ke2 {[%clk 0:01:43]}  e6 {[%clk 0:00:12]} 18. Bc4 {[%clk 0:01:36]}  a6 {[%clk 0:00:10]} 19. Ng4 {[%clk 0:01:35]}  b5 {[%clk 0:00:09]} 20. Bd3 {[%clk 0:01:35]}  Bb7 {[%clk 0:00:08]} 21. Be3 {[%clk 0:01:29]}  Rad8 {[%clk 0:00:07]} 22. Nf2 {[%clk 0:01:29]}  Bg7 {[%clk 0:00:06]} 23. h5 {[%clk 0:01:29]}  e5 {[%clk 0:00:00]} 24. hxg6 {[%clk 0:01:28]} 1-0

[Event "January 2 Early 2024"]
[Site "https://www.chess.com"]
[Date "2024.01.02"]
[Round "5"]
[White "Golubev, Mikhail"]
[Black "Martin, Lewis"]
[Result "1-0"]
[Board "150"]
[TimeControl "180+1"]
[WhiteFideId "14100983"]
[BlackFideId "410551"]
[WhiteElo "2600"]
[BlackElo "2294"]
[WhiteTeam "UKR"]
[BlackTeam "ENG"]
[WhiteClock "0:01:11"]
[BlackClock "0:01:28"]

1. e4 {[%clk 0:03:00]}  c6 {[%clk 0:02:59]} 2. Nf3 {[%clk 0:02:59]}  d5 {[%clk 0:02:59]} 3. Nc3 {[%clk 0:02:59]}  dxe4 {[%clk 0:02:58]} 4. Nxe4 {[%clk 0:03:00]}  Bg4 {[%clk 0:02:58]} 5. h3 {[%clk 0:02:56]}  Bxf3 {[%clk 0:02:57]} 6. Qxf3 {[%clk 0:02:55]}  Nd7 {[%clk 0:02:57]} 7. d4 {[%clk 0:02:51]}  e6 {[%clk 0:02:56]} 8. Bf4 {[%clk 0:02:35]}  Ngf6 {[%clk 0:02:52]} 9. Nd6+ {[%clk 0:02:26]}  Bxd6 {[%clk 0:02:49]} 10. Bxd6 {[%clk 0:02:27]}  Qa5+ {[%clk 0:02:45]} 11. b4 {[%clk 0:02:07]}  Qd5 {[%clk 0:02:44]} 12. Qxd5 {[%clk 0:01:58]}  exd5 {[%clk 0:02:37]} 13. Bd3 {[%clk 0:01:51]}  O-O-O {[%clk 0:02:32]} 14. O-O-O {[%clk 0:01:50]}  g6 {[%clk 0:02:25]} 15. Rhe1 {[%clk 0:01:48]}  Rde8 {[%clk 0:02:24]} 16. a4 {[%clk 0:01:43]}  Ne4 {[%clk 0:02:10]} 17. Bxe4 {[%clk 0:01:31]}  dxe4 {[%clk 0:02:07]} 18. d5 {[%clk 0:01:27]}  cxd5 {[%clk 0:01:58]} 19. Rxd5 {[%clk 0:01:26]}  Nb6 {[%clk 0:01:56]} 20. Rc5+ {[%clk 0:01:23]}  Kd7 {[%clk 0:01:55]} 21. Rd1 {[%clk 0:01:21]}  Rc8 {[%clk 0:01:42]} 22. Be5+ {[%clk 0:01:14]}  Ke6 {[%clk 0:01:36]} 23. Bxh8 {[%clk 0:01:13]}  Rxh8 {[%clk 0:01:35]} 24. a5 {[%clk 0:01:12]}  Nd7 {[%clk 0:01:28]} 25. Rc7 {[%clk 0:01:11]} 1-0